bitfinex-derivatives/quotes_SOLF0:USTF0_20241127
["timestamp","ask_amount","ask_price","bid_price","bid_amount"]
[1732713154121,10.39402358,235.36,235.27,2.56]
[1732713154427,16.65779052,235.37,235.27,2.56]
[1732713155529,16.65779052,235.33,235.22,2.56]
[1732713155724,19.21779052,235.33,235.19,8.30766949]
[1732713155920,2.4879,235.32,235.19,8.30766949]
[1732713156124,2.4879,235.32,235.19,5.74766949]
[1732713156331,2.4879,235.32,235.19,8.30766949]
[1732713156832,4.6126,235.32,235.2,2.1257]
[1732713157525,2.4879,235.32,235.2,2.1257]
[1732713157835,2.1247,235.31,235.2,2.1257]
[1732713158928,2.1247,235.31,235.19,8.30766949]
[1732713159132,2.1247,235.31,235.21,2.1256]
[1732713159528,2.1247,235.31,235.19,8.30766949]
[1732713159529,2.1247,235.31,235.19,2.56]
[1732713160929,2.4879,235.32,235.19,2.56]
[1732713161432,2.4879,235.32,235.22,2.1254]
[1732713161636,2.4879,235.32,235.19,2.56]
[1732713161931,16.65779052,235.37,235.19,2.56]
[1732713162432,4.874,235.38,235.19,2.56]
[1732713162433,16.65779052,235.33,235.19,2.56]
[1732713162639,16.65779052,235.37,235.19,2.56]
[1732713162937,4.874,235.38,235.2,16.65779052]
[1732713164235,16.65779052,235.37,235.19,2.56]
[1732713164935,2.1244,235.34,235.23,2.1254]
[1732713165338,2.1244,235.34,235.19,2.56]
[1732713165339,2.56,235.36,235.18,0.54034]
[1732713165638,16.65779052,235.33,235.19,2.56]
[1732713166639,16.65779052,235.33,235.18,0.54034]
[1732713166839,16.65779052,235.29,235.18,0.54034]
[1732713167030,2.1251,235.27,235.18,0.54034]
[1732713167231,16.65779052,235.25,235.02,16.65779052]
[1732713167529,16.65779052,235.21,235.03,6.33827655]
[1732713167728,2.1259,235.18,235.04,2.71528889]
[1732713169239,2.1259,235.18,235.07,2.1268]
[1732713169532,2.126,235.17,235.04,2.71528889]
[1732713169839,2.5162,235.16,235.07,2.1268]
[1732713170538,2.5162,235.16,235.06,2.127]
[1732713171034,4.7229,235.15,235.06,2.127]
[1732713171241,16.65779052,235.13,235.0,2.71372743]
[1732713171834,2.1264,235.12,235.03,2.1272]
[1732713172036,16.65779052,235.13,235.03,2.1272]
[1732713172232,18.78409052,235.13,235.03,2.1272]
[1732713172637,18.78409052,235.13,235.0,2.71372743]
[1732713172841,16.65779052,235.13,235.01,2.56]
[1732713173539,2.4811,235.14,235.01,2.56]
[1732713173739,2.4811,235.14,235.1,2.1266]
[1732713173942,2.56,235.23,235.01,21.81239052]
[1732713174239,2.56,235.23,235.15,2.1261]
[1732713175241,4.6854,235.23,235.15,2.1261]
[1732713175834,16.65779052,235.25,235.13,2.56]
[1732713176445,18.78309052,235.25,235.17,2.1259]
[1732713176646,16.65779052,235.25,235.13,2.56]
[1732713177145,2.1255,235.23,235.15,2.1261]
[1732713177340,16.65779052,235.25,235.13,2.56]
[1732713177845,10.1489,235.28,235.13,2.56]
[1732713177846,7.5889,235.28,235.13,2.56]
[1732713178147,7.5889,235.28,235.17,2.1259]
[1732713178345,7.5889,235.28,235.13,2.56]
[1732713178747,2.1252,235.26,235.16,2.126]
[1732713178945,7.5889,235.28,235.16,2.126]
[1732713179347,2.1252,235.26,235.17,2.1259]
[1732713180249,7.5889,235.28,235.17,2.1259]
[1732713180443,2.1252,235.25,235.13,2.56]
[1732713180643,7.5889,235.28,235.13,2.56]
[1732713182548,7.5889,235.28,235.13,5.188]
[1732713182846,7.5889,235.28,235.19,2.1258]
[1732713183951,7.5889,235.28,235.13,5.188]
[1732713184652,2.6348,235.28,235.13,5.188]
[1732713185147,2.6348,235.28,235.13,2.56]
[1732713185451,2.6348,235.28,235.2,2.1256]
[1732713185650,2.6348,235.28,235.19,2.58]
[1732713187647,5.2779,235.32,235.19,2.58]
[1732713188348,5.2779,235.32,235.24,2.1253]
[1732713188655,29.39779052,235.29,235.01,2.58]
[1732713188851,2.4369,235.28,235.08,16.65779052]
[1732713189247,2.4369,235.28,235.09,2.58]
[1732713190253,2.4369,235.28,235.08,18.83182378]
[1732713190454,2.4369,235.28,235.09,2.58]
[1732713191951,2.4369,235.28,235.1,2.71193977]
[1732713192152,2.4369,235.28,235.09,2.58]
[1732713192352,2.4369,235.28,235.1,2.71546092]
[1732713192550,2.4369,235.28,235.09,2.58]
[1732713192757,2.4369,235.28,235.15,2.1261]
[1732713193055,2.4369,235.28,235.16,2.58]
[1732713193255,2.4369,235.28,235.17,2.58]
[1732713193753,5.2779,235.32,235.17,2.58]
[1732713193957,5.2779,235.32,235.18,5.1676]
[1732713194453,5.2779,235.32,235.18,15.57908958]
[1732713194659,5.2779,235.32,235.17,2.58]
[1732713195358,10.41148958,235.3,235.22,2.1254]
[1732713195657,10.41148958,235.3,235.23,2.58]
[1732713195853,10.41148958,235.3,235.23,4.7054]
[1732713196253,10.41148958,235.3,235.23,2.58]
[1732713197954,10.41148958,235.3,235.24,2.1253]
[1732713198255,10.41148958,235.3,235.23,2.58]
[1732713198256,10.41148958,235.33,235.23,2.58]
[1732713198653,10.41148958,235.36,235.23,2.58]
[1732713199058,10.41148958,235.36,235.28,2.125]
[1732713199253,10.41148958,235.36,235.29,2.58]
[1732713199462,5.094,235.39,235.29,2.58]
[1732713199463,10.41148958,235.33,235.29,2.58]
[1732713199864,10.41148958,235.33,235.27,2.58]
[1732713200169,10.41148958,235.33,235.25,2.58]
[1732713200351,12.53598958,235.33,235.24,2.58]
[1732713201057,10.41148958,235.3,235.21,2.58]
[1732713201658,10.41148958,235.3,235.21,4.7055]
[1732713202553,10.41148958,235.3,235.21,2.1255]
[1732713202764,10.41148958,235.3,235.22,2.58]
[1732713203453,2.4743,235.32,235.26,2.1251]
[1732713203654,2.4743,235.32,235.22,2.58]
[1732713203963,10.41148958,235.36,235.22,2.58]
[1732713204165,10.41148958,235.36,235.28,2.125]
[1732713204464,10.41148958,235.36,235.28,2.58]
[1732713204965,10.41148958,235.36,235.29,2.1249]
[1732713206265,2.5146,235.38,235.28,2.58]
[1732713206562,2.58,235.44,235.28,2.58]
[1732713206770,10.41148958,235.45,235.29,5.1091]
[1732713207562,10.41148958,235.45,235.35,2.1243]
[1732713207764,10.41148958,235.45,235.36,2.58]
[1732713208373,10.41148958,235.42,235.36,2.58]
[1732713209470,10.41148958,235.39,235.32,2.46]
[1732713210271,12.93648958,235.39,235.32,2.46]
[1732713210574,2.1241,235.38,235.32,2.46]
[1732713211577,2.1244,235.35,235.27,2.46]
[1732713211877,2.1244,235.35,235.26,2.46]
[1732713212173,19.95048958,235.39,235.26,2.46]
[1732713212579,17.82638958,235.39,235.26,2.46]
[1732713212769,17.82638958,235.39,235.29,2.1248]
[1732713212967,17.82638958,235.39,235.26,2.46]
[1732713213572,17.82638958,235.39,235.3,2.1248]
[1732713213772,17.82638958,235.39,235.26,2.46]
[1732713214975,7.4149,235.39,235.26,2.46]
[1732713215773,17.82638958,235.39,235.26,2.46]
[1732713216070,2.1242,235.37,235.28,2.125]
[1732713216272,17.82638958,235.39,235.26,2.46]
[1732713216273,10.41148958,235.36,235.26,2.46]
[1732713216473,2.1245,235.34,235.25,4.5852]
[1732713216778,10.41148958,235.36,235.25,2.1252]
[1732713217278,10.41148958,235.36,235.27,2.125]
[1732713217482,10.41148958,235.36,235.24,2.46]
[1732713217779,2.1244,235.35,235.27,2.1251]
[1732713218173,10.41148958,235.36,235.24,2.46]
[1732713218378,10.41148958,235.36,235.26,2.1251]
[1732713218379,2.1244,235.34,235.26,2.1251]
[1732713218876,2.1244,235.34,235.24,2.46]
[1732713219082,2.1244,235.34,235.27,2.1251]
[1732713219282,2.1244,235.34,235.24,2.46]
[1732713219582,2.1244,235.34,235.26,2.1251]
[1732713220582,2.1243,235.35,235.27,2.125]
[1732713220778,2.46,235.38,235.24,2.46]
[1732713220975,17.82638958,235.39,235.24,12.87148958]
[1732713221279,10.41148958,235.45,235.3,10.41148958]
[1732713221585,10.41148958,235.45,235.31,2.46]
[1732713221882,10.41148958,235.42,235.31,2.46]
[1732713222382,2.1241,235.38,235.31,2.46]
[1732713222784,2.1243,235.35,235.31,2.46]
[1732713223084,2.3967,235.37,235.31,2.46]
[1732713223284,2.3967,235.37,235.27,2.46]
[1732713223674,2.1244,235.34,235.27,4.585]
[1732713223875,2.3967,235.37,235.27,4.585]
[1732713224277,2.1243,235.36,235.27,4.585]
[1732713224583,2.3967,235.37,235.28,2.1249]
[1732713224791,2.1243,235.35,235.28,2.1249]
[1732713224981,10.41148958,235.36,235.27,2.46]
[1732713225377,101.0,235.55,235.34,10.41148958]
[1732713225378,12.74,235.55,235.34,10.41148958]
[1732713225582,5.1358,235.47,235.35,2.46]
[1732713225985,5.1358,235.47,235.39,2.124]
[1732713226182,5.1358,235.47,235.38,10.41148958]
[1732713226487,2.6023,235.51,235.44,2.1234]
[1732713226780,2.6023,235.51,235.44,2.46]
[1732713227185,2.6023,235.51,235.45,2.1234]
[1732713228191,2.6023,235.51,235.44,2.46]
[1732713228389,0.41824,235.52,235.44,2.46]
[1732713229083,0.41824,235.52,235.46,2.1233]
[1732713230585,0.41824,235.52,235.44,2.46]
[1732713230789,0.41824,235.52,235.47,2.1232]
[1732713230992,0.41824,235.52,235.44,2.46]
[1732713231188,0.41824,235.52,235.43,2.46]
[1732713231383,0.41824,235.52,235.43,4.5835]
[1732713231586,2.54104,235.52,235.43,4.5835]
[1732713231993,0.41824,235.52,235.43,2.46]
[1732713232189,2.123,235.5,235.43,2.46]
[1732713232592,0.41824,235.52,235.43,2.46]
[1732713232782,2.1229,235.51,235.43,4.5836]
[1732713233385,0.41824,235.52,235.46,2.1233]
[1732713233587,0.41824,235.52,235.43,19.08719576]
[1732713234389,0.41824,235.52,235.39,16.62719576]
[1732713234592,0.41824,235.52,235.4,2.46]
[1732713235594,0.41824,235.52,235.36,2.4345]
[1732713235890,2.458,235.51,235.37,2.46]
[1732713236086,4.5809,235.51,235.4,2.1239]
[1732713236293,2.458,235.51,235.4,2.1239]
[1732713236698,4.5809,235.51,235.4,2.1239]
[1732713237496,2.123,235.5,235.4,2.1239]
[1732713238094,2.1231,235.49,235.39,2.124]
[1732713238694,2.1231,235.49,235.37,2.46]
[1732713238695,2.123,235.5,235.4,2.1239]
[1732713238987,2.458,235.51,235.37,2.46]
[1732713239292,2.458,235.51,235.41,2.1238]
[1732713239498,2.458,235.51,235.37,2.46]
[1732713239693,2.458,235.51,235.39,16.62719576]
[1732713239887,2.458,235.51,235.44,2.1235]
[1732713240198,2.458,235.51,235.45,2.44]
[1732713241190,2.458,235.51,235.41,2.44]
[1732713241497,2.1232,235.48,235.41,2.44]
[1732713241798,2.458,235.51,235.41,2.44]
[1732713242398,2.1232,235.48,235.41,2.44]
[1732713242600,2.1232,235.48,235.4,2.44]
[1732713242801,2.458,235.51,235.4,2.44]
[1732713244698,2.1232,235.48,235.39,2.124]
[1732713244995,2.1232,235.48,235.39,4.564]
[1732713245495,19.08519576,235.51,235.39,2.44]
[1732713245898,2.1234,235.46,235.39,2.44]
[1732713246301,19.08519576,235.51,235.39,2.44]
[1732713246798,16.62719576,235.47,235.34,2.44]
[1732713247010,2.1237,235.43,235.34,4.5644]
[1732713247204,5.056,235.46,235.34,4.5644]
[1732713247405,5.056,235.46,235.34,2.44]
[1732713247706,5.056,235.46,235.35,2.1243]
[1732713247902,7.18358268,235.46,235.35,2.1243]
[1732713248200,2.1239,235.4,235.32,2.1246]
[1732713248399,10.40636424,235.4,235.32,2.44]
[1732713249002,2.6264,235.39,235.25,43.56636424]
[1732713249201,2.6264,235.39,235.26,2.44]
[1732713249402,2.1242,235.37,235.26,2.44]
[1732713249907,2.1242,235.37,235.28,2.125]
[1732713250604,2.1244,235.35,235.26,2.1251]
[1732713250813,2.1244,235.35,235.27,2.44]
[1732713251016,10.40636424,235.37,235.27,2.44]
[1732713251710,2.1243,235.36,235.27,4.565]
[1732713251908,10.40636424,235.37,235.22,10.40636424]
[1732713252109,7.2126,235.36,235.26,2.1251]
[1732713252306,5.0883,235.36,235.26,2.1251]
[1732713252704,2.1244,235.35,235.27,2.1251]
[1732713253308,2.1244,235.35,235.23,2.44]
[1732713253309,5.0883,235.36,235.28,2.125]
[1732713253811,5.0883,235.36,235.23,2.44]
[1732713255010,2.1244,235.35,235.27,2.125]
[1732713256317,5.0883,235.36,235.27,2.125]
[1732713256514,2.1245,235.34,235.27,2.125]
[1732713257518,2.1243,235.35,235.28,2.125]
[1732713257906,5.0883,235.36,235.28,2.125]
[1732713258108,5.0883,235.36,235.29,2.1248]
[1732713260014,7.2126,235.36,235.29,2.1248]
[1732713260318,7.2126,235.36,235.3,2.1248]
[1732713261219,2.5318,235.36,235.31,2.1246]
[1732713261416,2.1241,235.38,235.25,10.40636424]
[1732713261716,15.43356424,235.44,235.28,10.40636424]
[1732713261918,17.96616424,235.44,235.36,2.1242]
[1732713262117,17.96616424,235.44,235.29,2.44]
[1732713263524,7.5598,235.44,235.31,10.40636424]
[1732713263925,2.5326,235.44,235.37,2.1242]
[1732713264221,2.5326,235.44,235.36,2.44]
[1732713264524,2.5326,235.44,235.31,10.40636424]
[1732713264525,2.5326,235.44,235.35,2.44]
[1732713264718,2.5326,235.44,235.37,2.1242]
[1732713264920,2.5326,235.44,235.35,2.44]
[1732713266025,2.1237,235.43,235.35,2.44]
[1732713266824,2.5326,235.44,235.35,2.44]
[1732713268217,12.93896424,235.44,235.35,2.44]
[1732713268818,2.1238,235.41,235.35,2.44]
[1732713270019,2.1239,235.41,235.35,2.44]
[1732713270421,10.40636424,235.41,235.33,2.1245]
[1732713270627,10.40636424,235.41,235.24,5.1754]
[1732713270628,10.40636424,235.38,235.25,10.40636424]
[1732713270823,10.40636424,235.38,235.26,2.44]
[1732713271022,10.40636424,235.38,235.3,2.1247]
[1732713271223,2.1243,235.36,235.26,2.44]
[1732713271622,10.40636424,235.38,235.26,2.44]
[1732713271826,2.1242,235.37,235.29,2.1248]
[1732713272021,10.40636424,235.38,235.26,2.44]
[1732713272222,2.1244,235.35,235.27,2.1251]
[1732713272423,2.1244,235.35,235.27,4.5651]
[1732713273028,10.40636424,235.38,235.27,4.5651]
[1732713273332,10.40636424,235.35,235.23,2.1254]
[1732713273729,10.40636424,235.35,235.21,2.44]
[1732713274334,10.40636424,235.32,235.22,2.44]
[1732713274734,10.40636424,235.32,235.17,2.4053]
[1732713274935,10.40636424,235.29,235.18,2.44]
[1732713275536,2.1252,235.25,235.18,4.5659]
[1732713275837,10.40636424,235.29,235.18,4.5659]
[1732713276836,2.1252,235.26,235.19,2.1258]
[1732713277336,10.40636424,235.29,235.19,2.1258]
[1732713277532,10.40636424,235.29,235.18,2.44]
[1732713277533,10.40636424,235.32,235.18,2.44]
[1732713277940,2.1252,235.26,235.19,2.1257]
[1732713278139,10.40636424,235.32,235.19,2.1257]
[1732713278340,10.40636424,235.32,235.18,2.44]
[1732713278533,2.125,235.28,235.21,2.1256]
[1732713279034,10.40636424,235.32,235.21,2.1256]
[1732713279240,2.1251,235.27,235.2,2.1257]
[1732713279739,2.1251,235.27,235.18,2.44]
[1732713281134,2.1251,235.27,235.21,2.1256]
[1732713281639,2.1251,235.27,235.2,2.1257]
[1732713282636,2.1251,235.27,235.21,2.1256]
[1732713284438,2.1253,235.25,235.19,2.1257]
[1732713284639,10.40636424,235.29,235.17,2.44]
[1732713284842,10.40636424,235.29,235.12,5.1722]
[1732713284843,10.40636424,235.26,235.12,5.1722]
[1732713285137,2.1253,235.25,235.13,12.84636424]
[1732713285746,2.1253,235.24,235.13,12.84636424]
[1732713286042,2.44,235.29,235.16,10.40636424]
[1732713286043,10.40636424,235.29,235.16,10.40636424]
[1732713286340,0.25078,235.44,235.22,10.40636424]
[1732713286646,10.40636424,235.4,235.25,10.40636424]
[1732713286949,10.40636424,235.4,235.26,2.44]
[1732713287244,2.1244,235.35,235.28,2.1249]
[1732713287754,10.40636424,235.4,235.28,2.1249]
[1732713288842,10.40636424,235.37,235.26,2.44]
[1732713289042,10.40636424,235.4,235.26,12.84636424]
[1732713290743,2.1242,235.37,235.29,2.1249]
[1732713292444,2.1242,235.37,235.3,2.1248]
[1732713293145,2.1242,235.37,235.26,2.44]
[1732713293345,2.1242,235.37,235.31,2.1247]
[1732713294544,2.1242,235.37,235.26,2.44]
[1732713294748,2.1243,235.36,235.3,2.1248]
[1732713296743,2.1241,235.38,235.31,2.1247]
[1732713297251,10.40636424,235.4,235.31,2.1247]
[1732713297452,2.1242,235.37,235.31,2.1247]
[1732713297849,10.40636424,235.4,235.26,12.84636424]
[1732713298053,7.9001,235.43,235.29,10.40636424]
[1732713298352,0.25078,235.44,235.32,10.40636424]
[1732713298651,0.25078,235.44,235.39,2.124]
[1732713300053,0.25078,235.44,235.38,2.1241]
[1732713300248,0.25078,235.44,235.34,2.578]
[1732713300450,0.25078,235.44,235.35,10.40636424]
[1732713300651,0.25078,235.44,235.35,13.01026424]
[1732713300856,0.25078,235.44,235.38,10.40636424]
[1732713301051,0.25078,235.44,235.39,2.44]
[1732713302054,0.25078,235.44,235.42,2.1237]
[1732713304254,0.25078,235.44,235.39,2.44]
[1732713304662,0.25078,235.44,235.35,2.6039]
[1732713304856,2.37428,235.44,235.36,2.44]
[1732713305362,2.37428,235.44,235.34,2.578]
[1732713305363,2.1239,235.41,235.34,2.44]
[1732713305959,10.65714424,235.44,235.34,2.44]
[1732713306163,10.40636424,235.41,235.34,2.44]
[1732713306461,10.40636424,235.41,235.3,2.44]
[1732713307761,2.1241,235.39,235.31,2.1246]
[1732713308354,10.40636424,235.41,235.3,4.5648]
[1732713308559,10.40636424,235.41,235.28,5.0817]
[1732713308857,2.1241,235.38,235.29,2.44]
[1732713309062,10.40636424,235.41,235.29,4.5649]
[1732713309266,10.40636424,235.38,235.23,10.40636424]
[1732713309458,2.1244,235.35,235.24,2.44]
[1732713309662,10.40636424,235.38,235.27,2.125]
[1732713310157,10.40636424,235.38,235.25,2.44]
[1732713310463,10.40636424,235.32,235.21,2.44]
[1732713310765,2.5317,235.31,235.21,2.44]
[1732713310958,10.40636424,235.29,235.21,2.44]
[1732713311457,2.125,235.28,235.21,2.44]
[1732713311765,7.5969,235.31,235.21,2.44]
[1732713312459,2.5317,235.31,235.21,2.44]
[1732713312659,10.40636424,235.38,235.25,2.1252]
[1732713312962,10.40636424,235.38,235.23,10.40636424]
[1732713313155,10.40636424,235.35,235.23,2.1254]
[1732713313360,10.40636424,235.32,235.21,2.44]
[1732713313562,2.125,235.28,235.21,2.44]
[1732713313760,7.669,235.31,235.21,4.5656]
[1732713314065,7.669,235.31,235.21,2.44]
[1732713314960,2.1249,235.29,235.22,2.1255]
[1732713315566,2.125,235.28,235.2,4.5656]
[1732713315767,18.07536424,235.31,235.2,4.5656]
[1732713315967,2.1249,235.29,235.2,2.44]
[1732713316185,2.1249,235.29,235.21,2.1255]
[1732713316466,18.07536424,235.31,235.21,2.1255]
[1732713316664,7.669,235.31,235.22,2.1255]
[1732713317062,18.07536424,235.31,235.2,2.44]
[1732713317259,18.07536424,235.31,235.2,4.5657]
[1732713317866,2.1252,235.26,235.19,2.1258]
[1732713318064,10.40636424,235.28,235.17,2.44]
[1732713318270,10.40636424,235.28,235.11,10.40636424]
[1732713318473,10.40636424,235.28,235.12,2.44]
[1732713319067,10.40636424,235.25,235.14,2.1262]
[1732713319268,10.40636424,235.25,235.14,2.44]
[1732713319674,2.1254,235.24,235.14,2.44]
[1732713319870,10.40636424,235.25,235.14,2.44]
[1732713320166,10.40636424,235.25,235.14,2.1262]
[1732713321375,10.40636424,235.22,235.1,2.44]
[1732713321573,7.4119,235.21,235.1,2.44]
[1732713321770,2.1259,235.18,235.12,2.1264]
[1732713321970,7.4119,235.21,235.1,2.44]
[1732713322273,2.1258,235.2,235.12,2.1263]
[1732713322470,7.4119,235.21,235.12,2.1263]
[1732713322674,7.4119,235.21,235.1,2.44]
[1732713322675,10.40636424,235.19,235.1,2.44]
[1732713323171,7.4119,235.21,235.1,2.44]
[1732713323373,2.1258,235.2,235.12,2.1263]
[1732713323570,7.4119,235.21,235.12,2.1263]
[1732713323966,9.5376,235.21,235.1,2.44]
[1732713324175,2.17072635,235.2,235.02,2.4039]
[1732713324370,10.40636424,235.19,235.05,10.40636424]
[1732713324674,7.4119,235.21,235.08,10.40636424]
[1732713324977,49.28453935,235.27,235.11,10.40636424]
[1732713325171,47.15943935,235.27,235.12,2.44]
[1732713325676,2.1254,235.24,235.15,2.1261]
[1732713326383,10.40636424,235.22,235.12,2.44]
[1732713327067,12.53186424,235.22,235.12,2.44]
[1732713327479,10.40636424,235.22,235.12,2.44]
[1732713327776,10.40636424,235.22,235.08,10.40636424]
[1732713328078,10.40636424,235.22,235.09,2.44]
[1732713328482,10.40636424,235.19,235.08,2.44]
[1732713328977,2.1261,235.16,235.08,2.44]
[1732713329173,10.40636424,235.31,235.13,10.40636424]
[1732713329373,5.1363,235.29,235.14,2.44]
[1732713329772,2.125,235.28,235.19,2.1257]
[1732713329969,5.1363,235.29,235.2,2.44]
[1732713330169,10.40636424,235.23,235.08,2.44]
[1732713330377,10.40636424,235.19,235.08,2.44]
[1732713330577,10.40636424,235.22,235.08,2.44]
[1732713330781,10.40636424,235.25,235.18,2.1259]
[1732713331273,10.40636424,235.25,235.15,2.44]
[1732713331979,2.1254,235.24,235.16,2.126]
[1732713332677,2.594,235.27,235.15,2.44]
[1732713332986,10.40636424,235.22,235.15,2.44]
[1732713333678,2.1258,235.2,235.15,2.44]
[1732713334383,10.40636424,235.22,235.04,10.40636424]
[1732713334684,10.40636424,235.19,235.05,2.44]
[1732713334871,2.44,235.24,235.05,2.44]
[1732713334872,10.40636424,235.16,235.05,2.44]
[1732713335279,2.1264,235.12,235.05,2.44]
[1732713336081,2.1263,235.13,235.05,4.567]
[1732713336678,2.1263,235.13,235.06,2.1269]
[1732713336881,2.1263,235.13,235.05,2.44]
[1732713337380,10.40636424,235.13,234.99,10.40636424]
[1732713337588,10.40636424,235.1,234.99,2.44]
[1732713338586,10.40636424,235.1,235.02,2.1272]
[1732713340181,12.53296424,235.1,235.02,2.1272]
[1732713340580,12.53356424,235.04,234.89,2.44]
[1732713340789,10.40636424,235.01,234.86,10.40636424]
[1732713340990,10.40636424,235.01,234.92,2.1282]
[1732713341191,12.53376424,235.01,234.87,2.44]
[1732713341390,10.40636424,234.98,234.81,2.4903]
[1732713341594,10.40636424,234.98,234.89,2.1285]
[1732713342188,10.40636424,234.98,234.81,2.4903]
[1732713342189,2.1279,234.96,234.87,2.1286]
[1732713342387,2.1279,234.96,234.85,2.44]
[1732713342785,4.5677,234.99,234.88,2.1286]
[1732713342993,4.9016,235.03,234.87,16.71248192]
[1732713343799,21.78428192,235.07,234.98,2.1276]
[1732713343999,21.78428192,235.07,234.94,2.44]
[1732713344199,2.5881,235.06,234.94,2.44]
[1732713344400,2.5881,235.06,234.98,2.1277]
[1732713344600,2.5881,235.06,234.94,2.44]
[1732713345002,2.5881,235.06,234.99,2.1276]
[1732713345502,2.5881,235.06,234.94,2.44]
[1732713346907,2.5881,235.06,234.98,2.1277]
[1732713348302,2.5881,235.06,234.94,2.44]
[1732713348497,4.7151,235.06,234.97,2.1278]
[1732713348900,2.5881,235.06,234.94,2.128]
[1732713349108,2.1273,235.03,234.94,2.128]
[1732713349299,2.5881,235.06,234.92,2.44]
[1732713349998,2.5881,235.06,234.94,2.128]
[1732713351006,2.1273,235.03,234.94,2.128]
[1732713351403,19.15248192,235.03,234.82,2.7184276]
[1732713351597,19.15248192,235.03,234.83,2.44]
[1732713352102,19.15248192,235.03,234.8,21.81028192]
[1732713352103,16.71248192,234.95,234.8,2.4731]
[1732713352409,16.71248192,234.95,234.8,2.44]
[1732713352611,16.71248192,234.91,234.82,2.129]
[1732713352811,16.71248192,234.91,234.8,2.44]
[1732713353104,2.1283,234.92,234.82,2.1291]
[1732713353304,7.3626,234.94,234.8,2.44]
[1732713353710,9.4907,234.94,234.86,2.1287]
[1732713354203,9.4907,234.94,234.84,2.1289]
[1732713354204,2.1282,234.92,234.84,2.1289]
[1732713354410,7.3626,234.94,234.8,2.44]
[1732713354705,2.44,235.03,234.85,16.71248192]
[1732713354909,7.4641,235.06,234.89,16.71248192]
[1732713355110,7.4641,235.06,234.9,2.44]
[1732713355410,7.4641,235.06,234.99,2.1276]
[1732713355611,16.71248192,235.12,234.98,2.44]
[1732713355810,16.71248192,235.16,234.99,2.44]
[1732713356011,2.1263,235.13,235.04,2.1271]
[1732713356512,16.71248192,235.16,235.03,2.44]
[1732713357611,2.1263,235.13,235.04,2.1271]
[1732713357808,16.71248192,235.16,235.03,2.44]
[1732713358003,5.0129,235.18,235.03,2.44]
[1732713358206,16.71248192,235.24,235.05,16.71248192]
[1732713358412,5.1285,235.26,235.05,16.71248192]
[1732713358608,7.2537,235.26,235.14,2.1262]
[1732713358808,7.2537,235.26,235.15,2.44]
[1732713358809,5.1285,235.26,235.15,2.44]
[1732713359614,2.1253,235.25,235.15,2.44]
[1732713359813,16.71248192,235.2,235.15,2.44]
[1732713360011,16.71248192,235.2,235.1,2.44]
[1732713360610,2.1259,235.18,235.04,7.3482]
[1732713360806,16.71248192,235.2,235.05,2.44]
[1732713361714,2.1258,235.19,235.05,2.44]
[1732713362110,16.71248192,235.2,235.05,2.44]
[1732713362315,16.71248192,235.24,235.05,19.15248192]
[1732713362510,5.1285,235.26,235.09,16.71248192]
[1732713363314,4.753,235.31,235.19,2.1257]
[1732713363510,2.6282,235.31,235.2,2.44]
[1732713363913,2.6282,235.31,235.2,4.5657]
[1732713365004,2.1248,235.3,235.21,2.44]
[1732713365910,2.6282,235.31,235.21,2.44]
[1732713366412,2.1249,235.29,235.21,2.44]
[1732713366614,16.71248192,235.28,235.14,7.5447]